[Event "*** Titled Tuesday Blitz"]
[Site "Chess.com"]
[Date "2021.04.20"]
[Round "9"]
[White "MateusViageiro"]
[Black "Deepweb2020"]
[Result "0-1"]
[WhiteElo "2282"]
[BlackElo "2474"]
[TimeControl "180+1"]
[EndTime "11:44:41 PDT"]
[Termination "Deepweb2020 won on time"]

1. e4 {[%clk 0:03:00.1]} 1... c6 {[%clk 0:02:58.9]} 2. d4 {[%clk 0:02:58.3]}
2... d5 {[%clk 0:02:59.8]} 3. Nc3 {[%clk 0:02:58.4]} 3... dxe4 {[%clk
0:03:00.3]} 4. Nxe4 {[%clk 0:02:58.1]} 4... Nf6 {[%clk 0:03:01.2]} 5. Nxf6+
{[%clk 0:02:57.7]} 5... exf6 {[%clk 0:03:02.1]} 6. c3 {[%clk 0:02:54.6]} 6...
Bd6 {[%clk 0:03:02.2]} 7. Bd3 {[%clk 0:02:53.4]} 7... O-O {[%clk 0:03:02.6]} 8.
Qc2 {[%clk 0:02:51.7]} 8... Re8+ {[%clk 0:03:02.6]} 9. Ne2 {[%clk 0:02:49.3]}
9... h5 {[%clk 0:03:03.5]} 10. O-O {[%clk 0:02:47.4]} 10... h4 {[%clk
0:02:57.2]} 11. h3 {[%clk 0:02:46.2]} 11... Nd7 {[%clk 0:02:53.4]} 12. Be3
{[%clk 0:02:38.5]} 12... Nf8 {[%clk 0:02:50.8]} 13. Rfe1 {[%clk 0:02:38.1]}
13... Bb8 {[%clk 0:02:46.9]} 14. Qd2 {[%clk 0:02:29.6]} 14... g5 {[%clk
0:02:42.6]} 15. f4 {[%clk 0:02:22.3]} 15... Qc7 {[%clk 0:02:37.1]} 16. Rf1
{[%clk 0:01:56.2]} 16... Be6 {[%clk 0:02:25.3]} 17. Rf2 {[%clk 0:01:47.4]} 17...
Bd5 {[%clk 0:02:11.9]} 18. fxg5 {[%clk 0:01:41]} 18... Qh2+ {[%clk 0:02:11.5]}
19. Kf1 {[%clk 0:01:40.2]} 19... Bg3 {[%clk 0:02:07.2]} 20. Ng1 {[%clk
0:01:09.5]} 20... Bxf2 {[%clk 0:01:47.3]} 21. Qxf2 {[%clk 0:01:06]} 21... Qxg2+
{[%clk 0:01:44.9]} 22. Qxg2 {[%clk 0:01:01.3]} 22... Bxg2+ {[%clk 0:01:45.8]}
23. Kf2 {[%clk 0:00:58.2]} 23... Bd5 {[%clk 0:01:33.7]} 24. gxf6 {[%clk
0:00:52.6]} 24... Nh7 {[%clk 0:01:33.5]} 25. Bxh7+ {[%clk 0:00:36.7]} 25... Kxh7
{[%clk 0:01:30.8]} 26. Ne2 {[%clk 0:00:33.1]} 26... Re6 {[%clk 0:01:23.1]} 27.
Bg5 {[%clk 0:00:28]} 27... Re4 {[%clk 0:01:17]} 28. Rg1 {[%clk 0:00:13.8]} 28...
Rg8 {[%clk 0:01:13]} 29. b3 {[%clk 0:00:11.3]} 29... b5 {[%clk 0:01:12.3]} 30.
Nc1 {[%clk 0:00:06]} 30... Be6 {[%clk 0:00:59.9]} 31. Nd3 {[%clk 0:00:05.6]}
31... Bxh3 {[%clk 0:00:57.3]} 32. Ne5 {[%clk 0:00:05.2]} 32... c5 {[%clk
0:00:47]} 33. Nxf7 {[%clk 0:00:03.1]} 33... cxd4 {[%clk 0:00:46.5]} 34. cxd4
{[%clk 0:00:02.8]} 34... Rxd4 {[%clk 0:00:42]} 35. Nh6 {[%clk 0:00:01.4]} 35...
Rxg5 {[%clk 0:00:36.4]} 0-1

[Event "*** Titled Tuesday Blitz"]
[Site "Chess.com"]
[Date "2021.04.20"]
[Round "9"]
[White "catzapto"]
[Black "Piccadilly123"]
[Result "1/2-1/2"]
[WhiteElo "2110"]
[BlackElo "2222"]
[TimeControl "180+1"]
[EndTime "11:44:42 PDT"]
[Termination "Game drawn by repetition"]

1. e4 {[%clk 0:03:00.9]} 1... g6 {[%clk 0:02:58.9]} 2. d4 {[%clk 0:03:00.6]}
2... Bg7 {[%clk 0:02:59.8]} 3. Bd3 {[%clk 0:02:59.7]} 3... Bxd4 {[%clk
0:02:58.3]} 4. h4 {[%clk 0:02:58.3]} 4... h5 {[%clk 0:02:56.2]} 5. g4 {[%clk
0:02:56.4]} 5... hxg4 {[%clk 0:02:50.9]} 6. Qxg4 {[%clk 0:02:54.8]} 6... d5
{[%clk 0:02:41.5]} 7. Qg2 {[%clk 0:02:53.1]} 7... dxe4 {[%clk 0:02:30.9]} 8.
Bxe4 {[%clk 0:02:49.6]} 8... c6 {[%clk 0:02:28.4]} 9. Ne2 {[%clk 0:02:37.4]}
9... Bg7 {[%clk 0:02:20.6]} 10. h5 {[%clk 0:02:34.5]} 10... Nf6 {[%clk
0:01:51.4]} 11. hxg6 {[%clk 0:02:34]} 11... Rxh1+ {[%clk 0:01:50.5]} 12. Qxh1
{[%clk 0:02:33.6]} 12... Nxe4 {[%clk 0:01:50.3]} 13. gxf7+ {[%clk 0:02:33.9]}
13... Kxf7 {[%clk 0:01:50.8]} 14. Qxe4 {[%clk 0:02:32.2]} 14... Qd5 {[%clk
0:01:51.4]} 15. Nbc3 {[%clk 0:02:20.4]} 15... Qxe4 {[%clk 0:01:37]} 16. Nxe4
{[%clk 0:02:19.9]} 16... Bf5 {[%clk 0:01:36]} 17. N2g3 {[%clk 0:02:16.4]} 17...
Bg6 {[%clk 0:01:31.7]} 18. c3 {[%clk 0:02:13.9]} 18... Nd7 {[%clk 0:01:30.3]}
19. Ng5+ {[%clk 0:02:05.5]} 19... Kf6 {[%clk 0:01:16.9]} 20. Be3 {[%clk
0:01:34.1]} 20... Ne5 {[%clk 0:01:03.8]} 21. O-O-O {[%clk 0:00:55.6]} 21... Nd3+
{[%clk 0:00:52.1]} 22. Kd2 {[%clk 0:00:20.5]} 22... Nxb2 {[%clk 0:00:50.2]} 23.
Rg1 {[%clk 0:00:11.7]} 23... Nc4+ {[%clk 0:00:41.7]} 24. Ke2 {[%clk 0:00:11.6]}
24... Nxe3 {[%clk 0:00:31.7]} 25. N3e4+ {[%clk 0:00:08.6]} 25... Ke5 {[%clk
0:00:25.8]} 26. Kxe3 {[%clk 0:00:08.9]} 26... Bh6 {[%clk 0:00:23]} 27. f4+
{[%clk 0:00:08.9]} 27... Kd5 {[%clk 0:00:16.1]} 28. Rd1+ {[%clk 0:00:08.3]}
28... Kc4 {[%clk 0:00:16]} 29. Rd4+ {[%clk 0:00:08.1]} 29... Kb5 {[%clk
0:00:15.5]} 30. Rb4+ {[%clk 0:00:08.5]} 30... Ka6 {[%clk 0:00:15.4]} 31. Nc5+
{[%clk 0:00:07.6]} 31... Ka5 {[%clk 0:00:16.1]} 32. Nxb7+ {[%clk 0:00:06.6]}
32... Ka6 {[%clk 0:00:15.1]} 33. Nc5+ {[%clk 0:00:07.5]} 33... Ka5 {[%clk
0:00:15.6]} 34. Nb7+ {[%clk 0:00:04.9]} 34... Ka6 {[%clk 0:00:15.4]} 35. Nc5+
{[%clk 0:00:05.6]} 35... Ka5 {[%clk 0:00:15.7]} 36. Nb7+ {[%clk 0:00:06.1]}
1/2-1/2

[Event "*** Titled Tuesday Blitz"]
[Site "Chess.com"]
[Date "2021.04.20"]
[Round "9"]
[White "federicosellitti"]
[Black "DanielTitichoca"]
[Result "1-0"]
[WhiteElo "2607"]
[BlackElo "2315"]
[TimeControl "180+1"]
[EndTime "11:44:44 PDT"]
[Termination "federicosellitti won by resignation"]

1. e4 {[%clk 0:03:00.9]} 1... c5 {[%clk 0:02:59.5]} 2. Nc3 {[%clk 0:03:00.9]}
2... Nc6 {[%clk 0:02:59.6]} 3. g3 {[%clk 0:03:00.7]} 3... a6 {[%clk 0:02:59.8]}
4. Bg2 {[%clk 0:03:01.2]} 4... g6 {[%clk 0:03:00.3]} 5. d3 {[%clk 0:03:01.8]}
5... Bg7 {[%clk 0:03:00.3]} 6. Be3 {[%clk 0:03:02.2]} 6... d6 {[%clk 0:03:00.1]}
7. Qd2 {[%clk 0:03:02.2]} 7... Rb8 {[%clk 0:03:00.4]} 8. Nge2 {[%clk 0:03:01.4]}
8... b5 {[%clk 0:03:01]} 9. O-O {[%clk 0:03:02]} 9... b4 {[%clk 0:03:01.2]} 10.
Nd1 {[%clk 0:03:02.6]} 10... e6 {[%clk 0:02:58.5]} 11. f4 {[%clk 0:03:02.2]}
11... Nge7 {[%clk 0:02:59.1]} 12. f5 {[%clk 0:03:02.8]} 12... exf5 {[%clk
0:02:58.2]} 13. Bh6 {[%clk 0:03:03.4]} 13... O-O {[%clk 0:02:54.6]} 14. Bxg7
{[%clk 0:02:59.8]} 14... Kxg7 {[%clk 0:02:55.5]} 15. Ne3 {[%clk 0:02:59.6]}
15... fxe4 {[%clk 0:02:54.1]} 16. dxe4 {[%clk 0:03:00.5]} 16... Ne5 {[%clk
0:02:53.3]} 17. Nf4 {[%clk 0:02:42.3]} 17... Be6 {[%clk 0:02:37.1]} 18. Nxe6+
{[%clk 0:02:01]} 18... fxe6 {[%clk 0:02:36.2]} 19. Rxf8 {[%clk 0:02:01.9]} 19...
Kxf8 {[%clk 0:02:31.8]} 20. Rf1+ {[%clk 0:02:02.8]} 20... Kg7 {[%clk 0:02:29.5]}
21. Bh3 {[%clk 0:02:01.7]} 21... N7c6 {[%clk 0:02:22.4]} 22. Bxe6 {[%clk
0:01:41.7]} 22... Nd4 {[%clk 0:02:21.2]} 23. Bg4 {[%clk 0:01:33.9]} 23... h5
{[%clk 0:02:03.8]} 24. Bd1 {[%clk 0:01:27.6]} 24... Rb7 {[%clk 0:01:43.8]} 25.
c3 {[%clk 0:01:25.1]} 25... bxc3 {[%clk 0:01:43.6]} 26. bxc3 {[%clk 0:01:26]}
26... Ne6 {[%clk 0:01:44]} 27. Qd5 {[%clk 0:01:14.3]} 27... Re7 {[%clk
0:01:38.5]} 28. Nf5+ {[%clk 0:01:14.9]} 28... gxf5 {[%clk 0:01:14.6]} 29. exf5
{[%clk 0:01:15.8]} 29... Nc7 {[%clk 0:01:14.8]} 30. f6+ {[%clk 0:01:12.8]} 30...
Kh8 {[%clk 0:01:15.4]} 31. fxe7 {[%clk 0:01:11.8]} 31... Qxe7 {[%clk 0:01:14.9]}
32. Qe4 {[%clk 0:01:01.9]} 32... Qg7 {[%clk 0:01:10.5]} 33. Bc2 {[%clk
0:00:50.9]} 33... Ne6 {[%clk 0:01:04.2]} 34. Rf6 {[%clk 0:00:47.1]} 34... Ng5
{[%clk 0:01:02.7]} 35. Qf5 {[%clk 0:00:34.9]} 35... Nef3+ {[%clk 0:00:17.1]} 36.
Kf2 {[%clk 0:00:24.9]} 36... Ne4+ {[%clk 0:00:08.5]} 37. Bxe4 {[%clk 0:00:23.9]}
37... Ng5 {[%clk 0:00:07.6]} 38. Rf8+ {[%clk 0:00:22.1]} 1-0

[Event "*** Titled Tuesday Blitz"]
[Site "Chess.com"]
[Date "2021.04.20"]
[Round "9"]
[White "QuintilianoR"]
[Black "ural58"]
[Result "0-1"]
[WhiteElo "2656"]
[BlackElo "2469"]
[TimeControl "180+1"]
[EndTime "11:44:45 PDT"]
[Termination "ural58 won on time"]

1. e4 {[%clk 0:03:00.9]} 1... d5 {[%clk 0:02:59.6]} 2. exd5 {[%clk 0:03:00.9]}
2... Qxd5 {[%clk 0:02:59.5]} 3. Nc3 {[%clk 0:03:00.1]} 3... Qa5 {[%clk
0:02:59.2]} 4. d4 {[%clk 0:02:59.5]} 4... Nf6 {[%clk 0:02:59.6]} 5. Nf3 {[%clk
0:02:58.7]} 5... Nc6 {[%clk 0:02:59.2]} 6. Bb5 {[%clk 0:02:31.1]} 6... Ne4
{[%clk 0:02:58.6]} 7. Bd2 {[%clk 0:02:17.3]} 7... Nxc3 {[%clk 0:02:57.5]} 8.
Bxc6+ {[%clk 0:02:17.4]} 8... bxc6 {[%clk 0:02:57.9]} 9. Bxc3 {[%clk 0:02:18.3]}
9... Qd5 {[%clk 0:02:57.9]} 10. O-O {[%clk 0:02:15.1]} 10... Bg4 {[%clk
0:02:57.3]} 11. Re1 {[%clk 0:02:14.5]} 11... Bxf3 {[%clk 0:02:57.2]} 12. Qxf3
{[%clk 0:02:14.6]} 12... Qxf3 {[%clk 0:02:57.3]} 13. gxf3 {[%clk 0:02:15.5]}
13... e6 {[%clk 0:02:57.4]} 14. b3 {[%clk 0:01:54.1]} 14... Kd7 {[%clk
0:02:52.7]} 15. Rad1 {[%clk 0:01:53.7]} 15... Bd6 {[%clk 0:02:48.8]} 16. Rd3
{[%clk 0:01:45.6]} 16... a5 {[%clk 0:02:46.2]} 17. a4 {[%clk 0:01:45.1]} 17...
Rhb8 {[%clk 0:02:44.5]} 18. Bd2 {[%clk 0:01:43.9]} 18... Ke7 {[%clk 0:02:20.3]}
19. Bg5+ {[%clk 0:01:39.3]} 19... f6 {[%clk 0:02:14.5]} 20. Bd2 {[%clk 0:01:38]}
20... Kf7 {[%clk 0:02:09.2]} 21. Re2 {[%clk 0:01:33.9]} 21... Rd8 {[%clk
0:01:59.6]} 22. Rde3 {[%clk 0:01:23.4]} 22... e5 {[%clk 0:01:56.7]} 23. dxe5
{[%clk 0:01:19.9]} 23... Bxe5 {[%clk 0:01:55.6]} 24. Bc3 {[%clk 0:01:20.2]}
24... Bxc3 {[%clk 0:01:49.2]} 25. Rxc3 {[%clk 0:01:21.1]} 25... Rd6 {[%clk
0:01:49.2]} 26. Rc5 {[%clk 0:01:20.7]} 26... Ra6 {[%clk 0:01:48.1]} 27. Kg2
{[%clk 0:01:20.2]} 27... Rd5 {[%clk 0:01:44.6]} 28. Rc4 {[%clk 0:01:16.5]} 28...
c5 {[%clk 0:01:44]} 29. Rce4 {[%clk 0:01:14.5]} 29... Rd7 {[%clk 0:01:43.8]} 30.
R2e3 {[%clk 0:01:10.9]} 30... Rc6 {[%clk 0:01:37.6]} 31. Re8 {[%clk 0:01:07.7]}
31... c4 {[%clk 0:01:35.3]} 32. Ra8 {[%clk 0:01:03]} 32... cxb3 {[%clk
0:01:34.5]} 33. cxb3 {[%clk 0:01:03.9]} 33... Rd5 {[%clk 0:01:29.9]} 34. h4
{[%clk 0:00:58.1]} 34... g5 {[%clk 0:01:28.2]} 35. h5 {[%clk 0:00:48.2]} 35...
f5 {[%clk 0:01:09.7]} 36. Ree8 {[%clk 0:00:36.1]} 36... Rh6 {[%clk 0:01:05.6]}
37. Rf8+ {[%clk 0:00:31.8]} 37... Ke7 {[%clk 0:01:04.8]} 38. Rfc8 {[%clk
0:00:23.6]} 38... Rc5 {[%clk 0:01:01.8]} 39. Re8+ {[%clk 0:00:20]} 39... Kd7
{[%clk 0:01:01.4]} 40. Rad8+ {[%clk 0:00:15.8]} 40... Kc6 {[%clk 0:01:01.1]} 41.
Rg8 {[%clk 0:00:13.1]} 41... Rxh5 {[%clk 0:00:58.9]} 42. Rg7 {[%clk 0:00:13.3]}
42... Rc1 {[%clk 0:00:47.4]} 43. Rf8 {[%clk 0:00:07.9]} 43... Rhh1 {[%clk
0:00:45.5]} 44. f4 {[%clk 0:00:07.5]} 44... g4 {[%clk 0:00:40.5]} 0-1

[Event "*** Titled Tuesday Blitz"]
[Site "Chess.com"]
[Date "2021.04.20"]
[Round "9"]
[White "Das_Virus_2020"]
[Black "northridgehawk"]
[Result "1-0"]
[WhiteElo "2483"]
[BlackElo "2325"]
[TimeControl "180+1"]
[EndTime "11:44:45 PDT"]
[Termination "Das_Virus_2020 won by checkmate"]

1. e4 {[%clk 0:03:00.9]} 1... e5 {[%clk 0:02:59.7]} 2. Nc3 {[%clk 0:03:00]} 2...
Nc6 {[%clk 0:02:59.9]} 3. g3 {[%clk 0:02:59.8]} 3... Nf6 {[%clk 0:02:59.3]} 4.
Bg2 {[%clk 0:03:00.1]} 4... Bc5 {[%clk 0:02:59.6]} 5. Nge2 {[%clk 0:03:00.5]}
5... d6 {[%clk 0:02:57.7]} 6. Na4 {[%clk 0:03:00.4]} 6... O-O {[%clk 0:02:54.9]}
7. d3 {[%clk 0:02:56]} 7... Bg4 {[%clk 0:02:52.7]} 8. h3 {[%clk 0:02:48.9]} 8...
Be6 {[%clk 0:02:46.5]} 9. c4 {[%clk 0:02:36.6]} 9... Qd7 {[%clk 0:02:40.8]} 10.
g4 {[%clk 0:02:03.1]} 10... Nd4 {[%clk 0:02:37.6]} 11. Ng3 {[%clk 0:01:47.9]}
11... c6 {[%clk 0:02:25.9]} 12. Nxc5 {[%clk 0:01:11.4]} 12... dxc5 {[%clk
0:02:25.1]} 13. f4 {[%clk 0:01:08]} 13... exf4 {[%clk 0:02:21]} 14. Bxf4 {[%clk
0:01:08.9]} 14... Rad8 {[%clk 0:02:20.5]} 15. Qd2 {[%clk 0:01:00.2]} 15... b5
{[%clk 0:02:04.7]} 16. b3 {[%clk 0:00:56.5]} 16... a5 {[%clk 0:01:41.8]} 17. O-O
{[%clk 0:00:54.5]} 17... a4 {[%clk 0:01:38.9]} 18. Rab1 {[%clk 0:00:53.7]} 18...
axb3 {[%clk 0:01:38.4]} 19. axb3 {[%clk 0:00:54.6]} 19... Ra8 {[%clk 0:01:36.5]}
20. e5 {[%clk 0:00:34]} 20... Ne8 {[%clk 0:01:31.8]} 21. Ne4 {[%clk 0:00:32.2]}
21... Qa7 {[%clk 0:01:07.3]} 22. Qf2 {[%clk 0:00:20.5]} 22... Nc7 {[%clk
0:01:02.4]} 23. Bh6 {[%clk 0:00:09.7]} 23... gxh6 {[%clk 0:00:46.3]} 24. Nf6+
{[%clk 0:00:09.5]} 24... Kh8 {[%clk 0:00:45.4]} 25. Qe3 {[%clk 0:00:10]} 25...
Rg8 {[%clk 0:00:40.4]} 26. Qxh6 {[%clk 0:00:09.9]} 26... Rg7 {[%clk 0:00:40.4]}
27. Nh5 {[%clk 0:00:09.9]} 27... Rag8 {[%clk 0:00:38.8]} 28. Be4 {[%clk
0:00:06.8]} 28... f5 {[%clk 0:00:34.1]} 29. exf6 {[%clk 0:00:06]} 29... Ne8
{[%clk 0:00:14.5]} 30. fxg7+ {[%clk 0:00:05.1]} 30... Rxg7 {[%clk 0:00:14.9]}
31. Nxg7 {[%clk 0:00:04.6]} 31... Qxg7 {[%clk 0:00:15.1]} 32. Qxe6 {[%clk
0:00:03.7]} 32... Nxe6 {[%clk 0:00:14]} 33. Rf2 {[%clk 0:00:03.3]} 33... Qd4
{[%clk 0:00:14.9]} 34. Rf1 {[%clk 0:00:02.9]} 34... N8g7 {[%clk 0:00:14.9]} 35.
Kg2 {[%clk 0:00:02.8]} 35... h5 {[%clk 0:00:15.8]} 36. g5 {[%clk 0:00:02.4]}
36... Nxg5 {[%clk 0:00:14.7]} 37. Rf8# {[%clk 0:00:02.2]} 1-0

[Event "*** Titled Tuesday Blitz"]
[Site "Chess.com"]
[Date "2021.04.20"]
[Round "9"]
[White "iulik86"]
[Black "MrChampion_Coach"]
[Result "1-0"]
[WhiteElo "2575"]
[BlackElo "2414"]
[TimeControl "180+1"]
[EndTime "11:44:47 PDT"]
[Termination "iulik86 won on time"]

1. d4 {[%clk 0:03:00.9]} 1... Nf6 {[%clk 0:02:56.3]} 2. c4 {[%clk 0:02:59.8]}
2... e6 {[%clk 0:02:55.7]} 3. g3 {[%clk 0:02:57.3]} 3... d5 {[%clk 0:02:54.9]}
4. Bg2 {[%clk 0:02:56.1]} 4... dxc4 {[%clk 0:02:54.9]} 5. Qa4+ {[%clk
0:02:49.9]} 5... Bd7 {[%clk 0:02:38.6]} 6. Qxc4 {[%clk 0:02:48.9]} 6... Bc6
{[%clk 0:02:39.1]} 7. Nf3 {[%clk 0:02:48.6]} 7... Bd6 {[%clk 0:02:37.8]} 8. O-O
{[%clk 0:02:46.6]} 8... Nbd7 {[%clk 0:02:34.6]} 9. Bf4 {[%clk 0:02:40.7]} 9...
O-O {[%clk 0:02:29.9]} 10. Nc3 {[%clk 0:02:34.9]} 10... Bxf4 {[%clk 0:01:50.4]}
11. gxf4 {[%clk 0:02:34.7]} 11... Nb6 {[%clk 0:01:36]} 12. Qd3 {[%clk
0:02:31.7]} 12... Nbd5 {[%clk 0:01:30.8]} 13. e3 {[%clk 0:02:31.4]} 13... Nxc3
{[%clk 0:01:25.3]} 14. bxc3 {[%clk 0:02:31]} 14... Be4 {[%clk 0:01:22.4]} 15.
Qe2 {[%clk 0:02:28.1]} 15... c5 {[%clk 0:01:19]} 16. Rfd1 {[%clk 0:02:23.8]}
16... Qa5 {[%clk 0:01:18.6]} 17. Qb2 {[%clk 0:02:13.1]} 17... Qc7 {[%clk
0:01:15.6]} 18. Ne5 {[%clk 0:02:04.1]} 18... Rac8 {[%clk 0:01:11.1]} 19. Bxe4
{[%clk 0:01:43.2]} 19... Nxe4 {[%clk 0:01:12]} 20. c4 {[%clk 0:01:43.4]} 20...
f6 {[%clk 0:01:00.7]} 21. Nf3 {[%clk 0:01:35.7]} 21... cxd4 {[%clk 0:00:57]} 22.
Nxd4 {[%clk 0:01:32.1]} 22... Nc5 {[%clk 0:00:48.8]} 23. Rab1 {[%clk 0:01:24.3]}
23... Qf7 {[%clk 0:00:44.8]} 24. Qc2 {[%clk 0:01:11.9]} 24... e5 {[%clk
0:00:43.5]} 25. Nb5 {[%clk 0:01:11.2]} 25... e4 {[%clk 0:00:35.9]} 26. Kh1
{[%clk 0:00:59.5]} 26... Qh5 {[%clk 0:00:34.9]} 27. Rg1 {[%clk 0:00:54.4]} 27...
Nd3 {[%clk 0:00:31.5]} 28. Nd6 {[%clk 0:00:46.7]} 28... Rc7 {[%clk 0:00:23.6]}
29. Rg2 {[%clk 0:00:42.7]} 29... Rd8 {[%clk 0:00:19.1]} 30. Nxe4 {[%clk
0:00:39.5]} 30... Qf3 {[%clk 0:00:14.7]} 31. Nxf6+ {[%clk 0:00:34.8]} 31... Kh8
{[%clk 0:00:11.6]} 32. Ng4 {[%clk 0:00:34]} 32... Rcd7 {[%clk 0:00:05.5]} 33.
Rg1 {[%clk 0:00:30.9]} 33... Nc5 {[%clk 0:00:02]} 34. Ne5 {[%clk 0:00:30.4]}
34... Qe4 {[%clk 0:00:01.6]} 35. Qxe4 {[%clk 0:00:29.8]} 35... Nxe4 {[%clk
0:00:02.5]} 36. Nxd7 {[%clk 0:00:29.8]} 36... Rxd7 {[%clk 0:00:03.4]} 37. f3
{[%clk 0:00:29.3]} 37... Nc5 {[%clk 0:00:02.7]} 38. Re2 {[%clk 0:00:28.6]} 38...
Rf7 {[%clk 0:00:02.1]} 39. Rd1 {[%clk 0:00:28.1]} 39... b6 {[%clk 0:00:01.3]}
40. Kg2 {[%clk 0:00:27.6]} 1-0

[Event "*** Titled Tuesday Blitz"]
[Site "Chess.com"]
[Date "2021.04.20"]
[Round "9"]
[White "Diaschess88"]
[Black "elcandado"]
[Result "1-0"]
[WhiteElo "2536"]
[BlackElo "2631"]
[TimeControl "180+1"]
[EndTime "11:44:48 PDT"]
[Termination "Diaschess88 won on time"]

1. d4 {[%clk 0:03:00.9]} 1... Nf6 {[%clk 0:02:59.3]} 2. c4 {[%clk 0:03:00.9]}
2... e6 {[%clk 0:02:59.2]} 3. Nf3 {[%clk 0:02:59.2]} 3... d5 {[%clk 0:02:58.3]}
4. Nc3 {[%clk 0:02:58.7]} 4... dxc4 {[%clk 0:02:57.9]} 5. e4 {[%clk 0:02:57.3]}
5... Bb4 {[%clk 0:02:56.9]} 6. Bg5 {[%clk 0:02:56.3]} 6... c5 {[%clk 0:02:56.4]}
7. e5 {[%clk 0:02:36.7]} 7... cxd4 {[%clk 0:02:44.5]} 8. Qa4+ {[%clk 0:02:36]}
8... Nc6 {[%clk 0:02:42.4]} 9. O-O-O {[%clk 0:02:34.1]} 9... Bd7 {[%clk
0:02:37.4]} 10. Ne4 {[%clk 0:02:18.3]} 10... Be7 {[%clk 0:02:33.1]} 11. Nxf6+
{[%clk 0:02:13.3]} 11... gxf6 {[%clk 0:02:30.8]} 12. exf6 {[%clk 0:02:11.6]}
12... Bxf6 {[%clk 0:02:30.2]} 13. Bxf6 {[%clk 0:02:09.7]} 13... Qxf6 {[%clk
0:02:31.1]} 14. Bxc4 {[%clk 0:02:09.1]} 14... Rc8 {[%clk 0:02:10.9]} 15. Kb1
{[%clk 0:02:08.6]} 15... Qg6+ {[%clk 0:01:48.4]} 16. Bd3 {[%clk 0:01:49.1]}
16... Qxg2 {[%clk 0:01:42]} 17. Nxd4 {[%clk 0:01:49.2]} 17... a6 {[%clk
0:01:21.9]} 18. Nb3 {[%clk 0:01:02.6]} 18... Ne5 {[%clk 0:01:14.7]} 19. Qd4
{[%clk 0:01:01.7]} 19... f6 {[%clk 0:00:33.4]} 20. Be4 {[%clk 0:00:50]} 20...
Qg4 {[%clk 0:00:21.3]} 21. Rhg1 {[%clk 0:00:37.6]} 21... Rc4 {[%clk 0:00:14.2]}
22. Qxd7+ {[%clk 0:00:30.2]} 22... Nxd7 {[%clk 0:00:12.6]} 23. Rxg4 {[%clk
0:00:30.8]} 23... Ne5 {[%clk 0:00:09.7]} 24. Nd2 {[%clk 0:00:20]} 24... Rd4
{[%clk 0:00:07.5]} 25. Bg6+ {[%clk 0:00:16.6]} 25... hxg6 {[%clk 0:00:07.6]} 26.
Rxd4 {[%clk 0:00:17]} 26... Rxh2 {[%clk 0:00:08]} 27. Ne4 {[%clk 0:00:17.1]}
27... f5 {[%clk 0:00:05.7]} 28. Nc5 {[%clk 0:00:16.9]} 28... Ke7 {[%clk
0:00:04.7]} 29. Rd6 {[%clk 0:00:15]} 29... Ng4 {[%clk 0:00:02.7]} 30. Rxe6+
{[%clk 0:00:15]} 30... Kf7 {[%clk 0:00:02]} 31. Rd7+ {[%clk 0:00:15.5]} 31...
Kf8 {[%clk 0:00:02.4]} 32. Rxb7 {[%clk 0:00:12.5]} 32... Rxf2 {[%clk 0:00:01.3]}
33. Rc6 {[%clk 0:00:11.7]} 1-0

[Event "*** Titled Tuesday Blitz"]
[Site "Chess.com"]
[Date "2021.04.20"]
[Round "9"]
[White "Anna_ChessMate"]
[Black "Rodalquilar"]
[Result "0-1"]
[WhiteElo "2587"]
[BlackElo "2739"]
[TimeControl "180+1"]
[EndTime "11:44:51 PDT"]
[Termination "Rodalquilar won by checkmate"]

1. d4 {[%clk 0:03:00.9]} 1... d5 {[%clk 0:03:00.1]} 2. c4 {[%clk 0:03:01.3]}
2... e6 {[%clk 0:03:00.7]} 3. Nf3 {[%clk 0:03:01.6]} 3... Nf6 {[%clk 0:03:00.7]}
4. Nc3 {[%clk 0:03:01.9]} 4... a6 {[%clk 0:03:00.8]} 5. cxd5 {[%clk 0:03:01.4]}
5... exd5 {[%clk 0:03:01.7]} 6. Bg5 {[%clk 0:03:02]} 6... Be6 {[%clk 0:03:01.8]}
7. e3 {[%clk 0:03:02]} 7... Nbd7 {[%clk 0:03:02.3]} 8. Bd3 {[%clk 0:03:02]} 8...
Bd6 {[%clk 0:03:02.6]} 9. O-O {[%clk 0:03:02.3]} 9... c6 {[%clk 0:03:03]} 10.
Qc2 {[%clk 0:03:02.5]} 10... Qc7 {[%clk 0:03:02.9]} 11. Rfe1 {[%clk 0:02:53.2]}
11... h6 {[%clk 0:03:02.2]} 12. Bh4 {[%clk 0:02:50.2]} 12... O-O {[%clk
0:03:02.1]} 13. Bg3 {[%clk 0:02:48.6]} 13... Bxg3 {[%clk 0:03:02]} 14. hxg3
{[%clk 0:02:49.5]} 14... Rfc8 {[%clk 0:03:02.2]} 15. Bf5 {[%clk 0:02:46.1]}
15... Re8 {[%clk 0:02:48.9]} 16. Bxe6 {[%clk 0:02:40.5]} 16... Rxe6 {[%clk
0:02:46.2]} 17. Rac1 {[%clk 0:02:38.8]} 17... Rae8 {[%clk 0:02:45.4]} 18. b4
{[%clk 0:02:36.4]} 18... Qd6 {[%clk 0:02:41.6]} 19. a4 {[%clk 0:02:22.3]} 19...
b5 {[%clk 0:02:30.8]} 20. axb5 {[%clk 0:02:04.2]} 20... axb5 {[%clk 0:02:31.7]}
21. Na2 {[%clk 0:02:02.5]} 21... Ne4 {[%clk 0:02:25.7]} 22. Ra1 {[%clk
0:01:56.1]} 22... Nb6 {[%clk 0:02:10]} 23. Reb1 {[%clk 0:01:41.6]} 23... Nc4
{[%clk 0:02:08.8]} 24. Nc3 {[%clk 0:01:42.1]} 24... Nxg3 {[%clk 0:01:12.4]} 25.
fxg3 {[%clk 0:01:36.3]} 25... Nxe3 {[%clk 0:01:12.7]} 26. Qd2 {[%clk 0:01:12.5]}
26... Qxg3 {[%clk 0:01:12.6]} 27. Qf2 {[%clk 0:01:03.2]} 27... Qf4 {[%clk
0:00:51.4]} 28. Ne2 {[%clk 0:00:44.1]} 28... Qe4 {[%clk 0:00:48.5]} 29. Rb2
{[%clk 0:00:33.5]} 29... Rg6 {[%clk 0:00:39.6]} 30. Nh4 {[%clk 0:00:19.7]} 30...
Rg4 {[%clk 0:00:31.9]} 31. g3 {[%clk 0:00:19.9]} 31... Re6 {[%clk 0:00:25.7]}
32. Ra8+ {[%clk 0:00:12.7]} 32... Kh7 {[%clk 0:00:23.6]} 33. Qxf7 {[%clk
0:00:05.8]} 33... Rxh4 {[%clk 0:00:15.2]} 34. Nf4 {[%clk 0:00:02.6]} 34... Rh1+
{[%clk 0:00:11.9]} 35. Kf2 {[%clk 0:00:02.9]} 35... Ng4# {[%clk 0:00:12.4]} 0-1